fUSD/lending_fUSD_20240116
["ID","MTS","AMOUNT","RATE_DAILY","PERIOD"]
[311773490,1705384266940,-4606.58,0.00022971,2]
[311773491,1705384266950,-597.49,0.00022971,2]
[311773492,1705384266961,-692.02,0.00022971,2]
[311773493,1705384266974,-5828.84,0.00022971,2]
[311773494,1705384266983,-500.0,0.00022971,2]
[311773495,1705384266994,-965.89,0.00022971,2]
[311773496,1705384267004,-500.0,0.00022971,2]
[311773497,1705384267013,-542.2,0.00022971,2]
[311773498,1705384267022,-503.84,0.00022971,2]
[311773499,1705384267032,-500.0,0.00022971,2]
[311773500,1705384267041,-3788.18,0.00022971,2]
[311773501,1705384267051,-500.0,0.00022971,2]
[311773502,1705384267060,-3513.41,0.00022971,2]
[311773503,1705384267074,-500.0,0.00022971,2]
[311773504,1705384267084,-500.0,0.00022971,2]
[311773505,1705384267100,-3013.25,0.00022971,2]
[311773506,1705384267112,-787.69,0.00022971,2]
[311773507,1705384267121,-985.5,0.00022971,2]
[311773508,1705384267131,-2770.85,0.00022971,2]
[311773509,1705384267143,-500.0,0.00022971,2]
[311773510,1705384267152,-500.0,0.00022971,2]
[311773511,1705384267162,-500.0,0.00022971,2]
[311773512,1705384267171,-7462.29,0.00022971,2]
[311773513,1705384267181,-831.28,0.00022971,2]
[311773514,1705384267192,-500.0,0.00022971,2]
[311773515,1705384267202,-845.09,0.00022971,2]
[311773516,1705384267211,-2576.91,0.00022971,2]
[311773517,1705384267222,-2320.22,0.00022971,2]
[311773518,1705384267244,-500.0,0.00022971,2]
[311773519,1705384267254,-547.06,0.00022971,2]
[311773520,1705384267264,-1270.0,0.00022971,2]
[311773521,1705384267274,-500.0,0.00022971,2]
[311773522,1705384267285,-657.97,0.00022971,2]
[311773523,1705384267297,-509.58,0.00022971,2]
[311773524,1705384267307,-2098.9,0.00022971,2]
[311773525,1705384267318,-2574.35,0.00022971,2]
[311773526,1705384267330,-500.0,0.00022971,2]
[311773527,1705384267341,-500.0,0.00022971,2]
[311773528,1705384267354,-500.0,0.00022971,2]
[311773529,1705384267364,-4678.98,0.00022971,2]
[311773530,1705384267386,-575.29,0.00022971,2]
[311773531,1705384267396,-500.0,0.00022971,2]
[311773532,1705384267406,-1210.84,0.00022971,2]
[311773533,1705384267417,-698.05,0.00022971,2]
[311773534,1705384267427,-3263.35,0.00022971,2]
[311773535,1705384267437,-500.0,0.00022971,2]
[311773536,1705384267447,-620.95,0.00022971,2]
[311773537,1705384267459,-500.0,0.00022971,2]
[311773538,1705384267470,-2075.26,0.00022971,2]
[311773539,1705384267481,-598.52,0.00022971,2]
[311773540,1705384267491,-514.13,0.00022971,2]
[311773541,1705384267500,-1065.16,0.00022971,2]
[311773542,1705384267512,-1300.85,0.00022971,2]
[311773543,1705384267522,-500.0,0.00022971,2]
[311773544,1705384267532,-705.41,0.00022971,2]
[311773545,1705384267542,-912.57,0.00022971,2]
[311773546,1705384267552,-1032.79,0.00022971,2]
[311773547,1705384267563,-874.61,0.00022971,2]
[311773548,1705384267573,-4376.83,0.00022971,2]
[311773549,1705384267583,-685.53,0.00022971,2]
[311773550,1705384267594,-3315.8,0.00022971,2]
[311773551,1705384267604,-1136.47,0.00022971,2]
[311773552,1705384267614,-500.0,0.00022971,2]
[311773553,1705384267624,-3161.92,0.00022971,2]
[311773554,1705384267633,-500.0,0.00022971,2]
[311773555,1705384267643,-500.0,0.00022971,2]
[311773556,1705384267654,-500.0,0.00022971,2]
[311773557,1705384267664,-500.0,0.00022971,2]
[311773558,1705384267674,-2110.94,0.00022971,2]
[311773559,1705384267684,-562.48,0.00022971,2]
[311773560,1705384267694,-639.97,0.00022971,2]
[311773561,1705384267704,-1454.18,0.00022971,2]
[311773562,1705384267714,-588.65,0.00022971,2]
[311773563,1705384267723,-500.0,0.00022971,2]
[311773564,1705384267733,-314.52,0.00022971,2]
[311773565,1705384267743,-955.64,0.00022971,2]
[311773566,1705384267753,-503.9,0.00022971,2]
[311773567,1705384267767,-509.03,0.00022971,2]
[311773568,1705384267777,-1148.2,0.00022971,2]
[311773569,1705384267787,-805.89,0.00022971,2]
[311773570,1705384267797,-1016.8,0.00022971,2]
[311773571,1705384267808,-524.1,0.00022971,2]
[311773572,1705384267818,-500.0,0.00022971,2]
[311773573,1705384267828,-500.0,0.00022971,2]
[311773574,1705384267838,-500.0,0.00022971,2]
[311773575,1705384267848,-500.0,0.00022972,2]
[311773576,1705384267858,-500.0,0.00022972,2]
[311773577,1705384267868,-500.0,0.00022972,2]
[311773578,1705384267883,-500.0,0.00022972,2]
[311773579,1705384267894,-500.0,0.00022972,2]
[311773580,1705384267905,-500.0,0.00022972,2]
[311773581,1705384267916,-543.43,0.00022972,2]
[311773582,1705384267927,-500.0,0.00022972,2]
[311773583,1705384267937,-500.0,0.00022972,2]
[311773584,1705384267948,-500.0,0.00022972,2]
[311773585,1705384267959,-500.0,0.00022972,2]
[311773586,1705384267969,-566.26,0.00022972,2]
[311773587,1705384267980,-500.0,0.00022972,2]
[311773588,1705384267990,-500.0,0.00022972,2]
[311773589,1705384268001,-500.0,0.00022972,2]
[311773590,1705384268011,-333.31094265,0.00022972,2]
[311773591,1705384268022,-500.0,0.00022972,2]
[311773592,1705384268033,-500.0,0.00022972,2]
[311773593,1705384268043,-500.0,0.00022972,2]
[311773594,1705384268054,-500.0,0.00022972,2]
[311773595,1705384268066,-500.0,0.00022972,2]
[311773596,1705384268077,-504.65,0.00022972,2]
[311773597,1705384268088,-500.0,0.00022972,2]
[311773598,1705384268099,-500.0,0.00022972,2]
[311773599,1705384268109,-528.67,0.00022972,2]
[311773600,1705384268121,-500.0,0.00022972,2]
[311773601,1705384268132,-546.9,0.00022972,2]
[311773602,1705384268143,-500.0,0.00022972,2]
[311773603,1705384268154,-500.0,0.00022972,2]
[311773604,1705384268165,-500.0,0.00022972,2]
[311773605,1705384268177,-500.0,0.00022972,2]
[311773606,1705384268188,-500.0,0.00022972,2]
[311773607,1705384268199,-500.0,0.00022972,2]
[311773608,1705384268210,-367.99796801,0.00022972,2]
[311773609,1705384268221,-500.0,0.00022972,2]
[311773610,1705384268232,-527.76,0.00022972,2]
[311773611,1705384268243,-500.0,0.00022972,2]
[311773612,1705384268254,-500.0,0.00022972,2]
[311773613,1705384268266,-500.0,0.00022972,2]
[311773614,1705384268277,-500.0,0.00022972,2]
[311773615,1705384268288,-500.0,0.00022972,2]
[311773616,1705384268299,-500.0,0.00022972,2]
[311773617,1705384268311,-500.0,0.00022972,2]
[311773618,1705384268323,-500.0,0.00022972,2]
[311773619,1705384268334,-500.0,0.00022972,2]
[311773620,1705384268347,-511.43,0.00022972,2]
[311773621,1705384268360,-500.0,0.00022972,2]
[311773622,1705384268372,-500.0,0.00022972,2]
[311773623,1705384268384,-500.0,0.00022972,2]
[311773624,1705384268395,-500.0,0.00022972,2]
[311773625,1705384268406,-500.0,0.00022972,2]
[311773626,1705384268418,-500.0,0.00022972,2]
[311773627,1705384268430,-500.0,0.00022972,2]
[311773628,1705384268441,-500.0,0.00022972,2]
[311773629,1705384268455,-500.0,0.00022972,2]
[311773630,1705384268466,-500.0,0.00022972,2]
[311773631,1705384268477,-500.0,0.00022972,2]
[311773632,1705384268489,-679.73,0.00022972,2]
[311773633,1705384268500,-749.85,0.00022972,2]
[311773634,1705384268511,-815.57,0.00022972,2]
[311773635,1705384268522,-824.19,0.00022972,2]
[311773636,1705384268532,-500.0,0.00022972,2]
[311773637,1705384268543,-500.0,0.00022972,2]
[311773638,1705384268554,-500.0,0.00022972,2]
[311773639,1705384268566,-500.0,0.00022972,2]
[311773640,1705384268577,-500.0,0.00022972,2]
[311773641,1705384268588,-500.0,0.00022972,2]
[311773642,1705384268599,-500.0,0.00022972,2]
[311773643,1705384268610,-728.18,0.00022972,2]
[311773644,1705384268620,-500.0,0.00022972,2]
[311773645,1705384268630,-500.0,0.00022972,2]
[311773646,1705384268640,-652.53,0.00022972,2]
[311773647,1705384268650,-546.93,0.00022972,2]
[311773648,1705384268660,-500.0,0.00022972,2]
[311773649,1705384268670,-500.0,0.00022972,2]
[311773650,1705384268680,-500.0,0.00022972,2]
[311773651,1705384268691,-500.0,0.00022972,2]
[311773652,1705384268701,-500.0,0.00022972,2]
[311773653,1705384268711,-500.0,0.00022972,2]
[311773654,1705384268721,-500.0,0.00022972,2]
[311773655,1705384268731,-588.89048846,0.00022972,2]
[311773656,1705384268742,-500.0,0.00022972,2]
[311773657,1705384268752,-500.0,0.00022972,2]
[311773658,1705384268762,-533.95,0.00022972,2]
[311773659,1705384268772,-500.0,0.00022972,2]
[311773660,1705384268783,-500.0,0.00022972,2]
[311773661,1705384268793,-2227.75,0.00022972,2]
[311773662,1705384268803,-500.0,0.00022972,2]
[311773663,1705384268813,-500.0,0.00022972,2]
[311773664,1705384268823,-500.0,0.00022972,2]
[311773665,1705384268833,-500.0,0.00022972,2]
[311773666,1705384268845,-500.0,0.00022972,2]
[311773667,1705384268856,-500.0,0.00022972,2]
[311773668,1705384268866,-500.0,0.00022972,2]
[311773669,1705384268876,-1176.23,0.00022972,2]
[311773670,1705384268886,-500.0,0.00022972,2]
[311773671,1705384268896,-500.0,0.00022972,2]
[311773672,1705384268907,-500.0,0.00022972,2]
[311773673,1705384268917,-553.61,0.00022972,2]
[311773674,1705384268927,-519.00971996,0.00022972,2]
[311773675,1705384268938,-520.86,0.00022972,2]
[311773676,1705384268948,-642.22,0.00022972,2]
[311773677,1705384268959,-510.5,0.00022972,2]
[311773678,1705384268969,-500.0,0.00022972,2]
[311773679,1705384268980,-500.0,0.00022972,2]
[311773680,1705384268990,-500.0,0.00022972,2]
[311773681,1705384269001,-704.48,0.00022972,2]
[311773682,1705384269011,-658.03,0.00022972,2]
[311773683,1705384269022,-500.0,0.00022972,2]
[311773684,1705384269032,-1010.31,0.00022972,2]
[311773685,1705384269042,-1182.94,0.00022972,2]
[311773686,1705384269053,-500.0,0.00022972,2]
[311773687,1705384269063,-500.0,0.00022972,2]
[311773688,1705384269073,-250.0,0.00022972,2]
[311773689,1705384269084,-500.0,0.00022972,2]
[311773690,1705384269095,-685.86,0.00022972,2]
[311773691,1705384269105,-500.0,0.00022972,2]
[311773692,1705384269115,-500.0,0.00022972,2]
[311773693,1705384269126,-598.25,0.00022972,2]
[311773694,1705384269137,-562.57,0.00022972,2]
[311773695,1705384269147,-500.0,0.00022972,2]
[311773696,1705384269157,-500.0,0.00022972,2]
[311773697,1705384269168,-500.0,0.00022972,2]
[311773698,1705384269178,-500.0,0.00022972,2]
[311773699,1705384269188,-500.0,0.00022972,2]
[311773700,1705384269198,-2332.79,0.00022972,2]
[311773701,1705384269209,-872.57,0.00022972,2]
[311773702,1705384269219,-500.2,0.00022972,2]
[311773703,1705384269229,-502.31,0.00022972,2]
[311773704,1705384269240,-664.81,0.00022972,2]
[311773705,1705384269250,-769.03,0.00022972,2]
[311773706,1705384269260,-526.43,0.00022972,2]
[311773707,1705384269270,-705.3,0.00022972,2]
[311773708,1705384269280,-500.0,0.00022972,2]
[311773709,1705384269291,-712.78,0.00022972,2]
[311773710,1705384269300,-624.95,0.00022972,2]
[311773711,1705384269311,-549.13,0.00022972,2]
[311773712,1705384269320,-1039.81,0.00022972,2]
[311773713,1705384269330,-507.84,0.00022972,2]
[311773714,1705384269340,-951.31,0.00022972,2]
[311773715,1705384269350,-1077.66,0.00022972,2]
[311773716,1705384269361,-631.09727159,0.00022972,2]
[311773717,1705384269371,-782.39,0.00022972,2]
[311773718,1705384269381,-500.0,0.00022972,2]
[311773719,1705384269391,-3586.75,0.00022972,2]
[311773720,1705384269401,-266.7237726,0.00022972,2]
[311773721,1705384269411,-578.43,0.00022972,2]
[311773722,1705384269421,-909.2,0.00022972,2]
[311773723,1705384269432,-500.0,0.00022972,2]
[311773724,1705384269442,-500.0,0.00022972,2]
[311773725,1705384269454,-962.94,0.00022972,2]
[311773726,1705384269464,-500.0,0.00022972,2]
[311773727,1705384269475,-705.28,0.00022972,2]
[311773728,1705384269489,-566.56,0.00022972,2]
[311773729,1705384269502,-558.22,0.00022972,2]
[311773730,1705384269517,-500.0,0.00022972,2]
[311773731,1705384269527,-725.41,0.00022972,2]
[311773732,1705384269538,-759.41,0.00022972,2]
[311773733,1705384269553,-631.13,0.00022972,2]
[311773734,1705384269563,-500.0,0.00022972,2]
[311773735,1705384269578,-1045.35,0.00022972,2]
[311773736,1705384269589,-500.0,0.00022972,2]
[311773737,1705384269599,-267.75632486,0.00022972,2]
[311773738,1705384269619,-1784.34,0.00022972,2]
[311773739,1705384269629,-500.0,0.00022972,2]
[311773740,1705384269657,-528.58,0.00022972,2]
[311773741,1705384269670,-556.53,0.00022972,2]
[311773742,1705384269691,-598.96,0.00022972,2]
[311773743,1705384269706,-500.0,0.00022972,2]
[311773744,1705384269721,-500.0,0.00022972,2]
[311773745,1705384270057,-500.0,0.00022972,2]
[311773746,1705384270078,-379.86944689,0.00022972,2]
[311773747,1705384270090,-600.0,0.00022972,2]
[311773748,1705384270100,-747.84,0.00022972,2]
[311773749,1705384270109,-500.0,0.00022972,2]
[311773750,1705384270118,-600.45578543,0.00022972,2]
[311773751,1705384270127,-635.16,0.00022972,2]
[311773752,1705384270136,-615.97,0.00022972,2]
[311773753,1705384270146,-500.0,0.00022972,2]
[311773754,1705384270156,-500.0,0.00022972,2]
[311773755,1705384270165,-624.42,0.00022972,2]
[311773756,1705384270175,-1341.08,0.00022972,2]
[311773757,1705384270185,-500.0,0.00022972,2]
[311773758,1705384270194,-500.0,0.00022972,2]
[311773759,1705384270204,-500.0,0.00022972,2]
[311773760,1705384270225,-1041.55,0.00022972,2]
[311773761,1705384270234,-713.19,0.00022972,2]
[311773762,1705384270264,-825.53,0.00022972,2]
[311773763,1705384270274,-500.0,0.00022972,2]
[311773764,1705384270284,-500.0,0.00022972,2]
[311773765,1705384270295,-500.0,0.00022972,2]
[311773766,1705384270305,-1011.96,0.00022972,2]
[311773767,1705384270316,-500.0,0.00022972,2]
[311773768,1705384270326,-500.0,0.00022972,2]
[311773769,1705384270337,-511.91,0.00022972,2]
[311773770,1705384270354,-832.41,0.00022972,2]
[311773771,1705384270365,-500.0,0.00022972,2]
[311773772,1705384270375,-684.84,0.00022972,2]
[311773773,1705384270386,-500.0,0.00022972,2]
[311773774,1705384270395,-1102.65,0.00022972,2]
[311773775,1705384270411,-594.9,0.00022972,2]
[311773776,1705384270435,-2298.13,0.00022972,2]
[311773777,1705384270447,-500.0,0.00022972,2]
[311773778,1705384270458,-574.47,0.00022972,2]
[311773779,1705384270471,-179.26529159,0.00022972,2]
[311773780,1705384270482,-835.15,0.00022972,2]
[311773781,1705384270493,-525.33,0.00022972,2]
[311773782,1705384270503,-540.3,0.00022972,2]
[311773783,1705384270532,-603.45,0.00022972,2]
[311773784,1705384270542,-500.0,0.00022972,2]
[311773785,1705384270552,-500.0,0.00022972,2]
[311773786,1705384270567,-500.0,0.00022972,2]
[311773787,1705384270577,-500.0,0.00022972,2]
[311773788,1705384270588,-626.1,0.00022972,2]
[311773789,1705384270600,-804.52,0.00022972,2]
[311773790,1705384270610,-688.7,0.00022972,2]
[311773791,1705384270621,-282.01017783,0.00022972,2]
[311773792,1705384270631,-500.0,0.00022972,2]
[311773793,1705384270641,-751.35,0.00022972,2]
[311773794,1705384270650,-500.0,0.00022972,2]
[311773795,1705384270660,-578.67,0.00022972,2]
[311773796,1705384270669,-500.0,0.00022972,2]
[311773797,1705384270679,-2213.84,0.00022972,2]
[311773798,1705384270688,-1786.58,0.00022972,2]
[311773799,1705384270697,-500.0,0.00022972,2]
[311773800,1705384270707,-500.0,0.00022972,2]
[311773801,1705384270717,-570.45,0.00022972,2]
[311773802,1705384270727,-830.89,0.00022972,2]
[311773803,1705384270736,-500.0,0.00022972,2]
[311773804,1705384270745,-959.55,0.00022972,2]
[311773805,1705384270755,-1682.45,0.00022972,2]
[311773806,1705384270765,-400.61511933,0.00022972,2]
[311773807,1705384270775,-500.0,0.00022972,2]
[311773808,1705384270785,-500.0,0.00022972,2]
[311773809,1705384270795,-954.37,0.00022972,2]
[311773810,1705384270804,-585.64,0.00022972,2]
[311773811,1705384270814,-1276.34,0.00022972,2]
[311773812,1705384270825,-736.42,0.00022972,2]
[311773813,1705384270835,-643.48,0.00022972,2]
[311773814,1705384270845,-706.75,0.00022972,2]
[311773815,1705384270854,-522.47,0.00022972,2]
[311773816,1705384270864,-818.94,0.00022972,2]
[311773817,1705384270874,-500.0,0.00022972,2]
[311773818,1705384270883,-1025.0,0.00022972,2]
[311773819,1705384270893,-835.08,0.00022972,2]
[311773820,1705384270902,-500.0,0.00022972,2]
[311773821,1705384270912,-500.0,0.00022972,2]
[311773822,1705384270921,-822.11,0.00022972,2]
[311773823,1705384270931,-500.0,0.00022972,2]
[311773824,1705384270941,-623.81,0.00022972,2]
[311773825,1705384270950,-2176.22,0.00022972,2]
[311773826,1705384270960,-508.82,0.00022972,2]
[311773827,1705384270969,-547.3,0.00022972,2]
[311773828,1705384270979,-898.35,0.00022972,2]
[311773829,1705384270989,-500.0,0.00022972,2]
[311773830,1705384270998,-500.0,0.00022972,2]
[311773831,1705384271008,-2918.98,0.00022972,2]
[311773832,1705384271018,-590.4,0.00022972,2]
[311773833,1705384271028,-300.0,0.00022972,2]
[311773834,1705384271037,-500.0,0.00022972,2]
[311773835,1705384271047,-1660.23,0.00022972,2]
[311773836,1705384271056,-619.57,0.00022972,2]
[311773837,1705384271066,-500.0,0.00022972,2]
[311773838,1705384271076,-656.63,0.00022972,2]
[311773839,1705384271086,-2053.8,0.00022972,2]
[311773840,1705384271096,-500.0,0.00022972,2]
[311773841,1705384271105,-2556.9,0.00022972,2]
[311773842,1705384271114,-500.0,0.00022972,2]
[311773843,1705384271123,-607.99,0.00022972,2]
[311773844,1705384271133,-500.0,0.00022972,2]
[311773845,1705384271143,-500.0,0.00022972,2]
[311773846,1705384271151,-2738.27,0.00022972,2]
[311773847,1705384271162,-2729.69,0.00022972,2]
[311773848,1705384271172,-579.25,0.00022972,2]
[311773849,1705384271181,-500.0,0.00022972,2]
[311773850,1705384271190,-710.73,0.00022972,2]
[311773851,1705384271200,-16206.79,0.00022972,2]
[311773852,1705384271209,-1060.52,0.00022972,2]
[311773853,1705384271219,-643.96,0.00022972,2]
[311773854,1705384271228,-2906.04,0.00022972,2]
[311773855,1705384271238,-579.57,0.00022972,2]
[311773856,1705384271247,-500.0,0.00022972,2]
[311773857,1705384271257,-535.78768443,0.00022972,2]
[311773858,1705384271266,-555.76,0.00022972,2]
[311773859,1705384271275,-662.47,0.00022972,2]
[311773860,1705384271284,-1651.88,0.00022972,2]
[311773861,1705384271293,-518.05,0.00022972,2]
[311773862,1705384271303,-979.75,0.00022972,2]
[311773863,1705384271313,-798.78,0.00022972,2]
[311773864,1705384271322,-500.0,0.00022972,2]
[311773865,1705384271332,-1112.48,0.00022972,2]
[311773866,1705384271341,-1213.7,0.00022972,2]
[311773867,1705384271350,-629.78,0.00022972,2]
[311773868,1705384271359,-3017.48,0.00022972,2]
[311773869,1705384271370,-569.66,0.00022972,2]
[311773870,1705384271379,-500.0,0.00022972,2]
[311773871,1705384271388,-724.24,0.00022972,2]
[311773872,1705384271397,-608.74,0.00022972,2]
[311773873,1705384271406,-500.0,0.00022972,2]
[311773874,1705384271415,-500.0,0.00022972,2]
[311773875,1705384271425,-500.0,0.00022972,2]
[311773876,1705384271434,-1362.91,0.00022972,2]
[311773877,1705384271444,-587.88,0.00022972,2]
[311773878,1705384271455,-500.0,0.00022972,2]
[311773879,1705384271465,-578.97,0.00022972,2]
[311773880,1705384271475,-617.27,0.00022972,2]
[311773881,1705384271484,-500.0,0.00022972,2]
[311773882,1705384271494,-538.63266576,0.00022972,2]
[311773883,1705384271503,-613.48,0.00022972,2]
[311773884,1705384271513,-1051.84,0.00022972,2]
[311773885,1705384271522,-500.0,0.00022972,2]
[311773886,1705384271531,-500.0,0.00022972,2]
[311773887,1705384271541,-500.0,0.00022972,2]
[311773888,1705384271551,-805.31,0.00022972,2]
[311773889,1705384271560,-500.0,0.00022972,2]
[311773890,1705384271570,-2174.98,0.00022972,2]
[311773891,1705384271579,-768.87,0.00022972,2]
[311773892,1705384271588,-1041.95,0.00022972,2]
[311773893,1705384271597,-500.0,0.00022972,2]
[311773894,1705384271607,-721.17,0.00022973,2]
[311773895,1705384271616,-675.73,0.00022973,2]
[311773896,1705384271625,-1111.26,0.00022973,2]
[311773897,1705384271634,-683.88,0.00022973,2]
[311773898,1705384271643,-711.97,0.00022973,2]
[311773899,1705384271653,-616.64,0.00022973,2]
[311773900,1705384271662,-1429.25,0.00022973,2]
[311773901,1705384271672,-850.56,0.00022973,2]
[311773902,1705384271681,-833.59,0.00022973,2]
[311773903,1705384271690,-1107.48,0.00022973,2]
[311773904,1705384271700,-559.54,0.00022973,2]
[311773905,1705384271709,-533.68,0.00022973,2]
[311773906,1705384271719,-943.33,0.00022973,2]
[311773907,1705384271728,-2689.38,0.00022973,2]
[311773908,1705384271737,-587.18,0.00022973,2]
[311773909,1705384271747,-918.91,0.00022973,2]
[311773910,1705384271756,-2490.07,0.00022973,2]
[311773911,1705384271766,-1027.49,0.00022973,2]
[311773912,1705384271775,-817.43,0.00022973,2]
[311773913,1705384271784,-830.09,0.00022973,2]
[311773914,1705384271794,-737.06,0.00022973,2]
[311773915,1705384271803,-660.05,0.00022973,2]
[311773916,1705384271812,-545.74,0.00022973,2]
[311773917,1705384271820,-500.0,0.00022973,2]
[311773918,1705384271829,-685.36,0.00022973,2]
[311773919,1705384271838,-500.0,0.00022973,2]
[311773920,1705384271848,-706.2,0.00022973,2]
[311773921,1705384271858,-588.36,0.00022973,2]
[311773922,1705384271867,-916.88,0.00022973,2]
[311773923,1705384271876,-502.99,0.00022973,2]
[311773924,1705384271885,-550.04,0.00022973,2]
[311773925,1705384271895,-566.66896451,0.00022973,2]
[311773926,1705384271904,-523.3,0.00022973,2]
[311773927,1705384271913,-500.0,0.00022973,2]
[311773928,1705384271923,-1055.21,0.00022973,2]
[311773929,1705384271933,-544.09,0.00022973,2]
[311773930,1705384271942,-841.32,0.00022973,2]
[311773931,1705384271952,-1154.82,0.00022973,2]
[311773932,1705384271962,-500.0,0.00022973,2]
[311773933,1705384271972,-514.13,0.00022973,2]
[311773934,1705384271981,-571.81,0.00022974,2]
[311773935,1705384271991,-500.0,0.00022974,2]
[311773936,1705384272000,-500.0,0.00022974,2]
[311773937,1705384272010,-500.0,0.00022974,2]
[311773938,1705384272018,-500.0,0.00022974,2]
[311773939,1705384272028,-500.0,0.00022974,2]
[311773940,1705384272037,-183.17831639,0.00022974,2]
[311773941,1705384272046,-500.0,0.00022974,2]
[311773942,1705384272055,-524.61,0.00022974,2]
[311773943,1705384272065,-500.0,0.00022974,2]
[311773944,1705384272074,-517.6,0.00022974,2]
[311773945,1705384272083,-500.0,0.00022974,2]
[311773946,1705384272092,-500.0,0.00022974,2]
[311773947,1705384272102,-500.0,0.00022974,2]
[311773948,1705384272111,-640.36,0.00022974,2]
[311773949,1705384272120,-500.0,0.00022974,2]
[311773950,1705384272130,-618.14568738,0.00022974,2]
[311773951,1705384272139,-500.0,0.00022974,2]
[311773952,1705384272148,-500.0,0.00022974,2]
[311773953,1705384272157,-500.0,0.00022974,2]
[311773954,1705384272167,-500.0,0.00022974,2]
[311773955,1705384272176,-296.19270634,0.00022974,2]
[311773956,1705384272185,-500.0,0.00022974,2]
[311773957,1705384272195,-675.91,0.00022974,2]
[311773958,1705384272204,-500.0,0.00022974,2]
[311773959,1705384272213,-500.0,0.00022974,2]
[311773960,1705384272222,-500.0,0.00022974,2]
[311773961,1705384272231,-500.0,0.00022974,2]
[311773962,1705384272240,-500.0,0.00022974,2]
[311773963,1705384272249,-519.92,0.00022974,2]
[311773964,1705384272258,-161.25,0.00022974,2]
[311773965,1705384272268,-1068.12,0.00022974,2]
[311773966,1705384272277,-500.0,0.00022974,2]
[311773967,1705384272286,-482.48,0.00022974,2]
[311773968,1705384272295,-500.0,0.00022974,2]
[311773969,1705384272304,-500.0,0.00022974,2]
[311773970,1705384272313,-500.0,0.00022974,2]
[311773971,1705384272323,-500.0,0.00022974,2]
[311773972,1705384272332,-500.0,0.00022974,2]
[311773973,1705384272342,-500.0,0.00022974,2]
[311773974,1705384272351,-500.0,0.00022974,2]
[311773975,1705384272361,-264.86024757,0.00022974,2]
[311773976,1705384272370,-500.0,0.00022974,2]
[311773977,1705384272379,-878.31,0.00022974,2]
[311773978,1705384272389,-500.0,0.00022974,2]
[311773979,1705384272397,-500.0,0.00022974,2]
[311773980,1705384272406,-500.0,0.00022974,2]
[311773981,1705384272415,-500.0,0.00022974,2]
[311773982,1705384272424,-500.0,0.00022974,2]
[311773983,1705384272538,-620.37,0.00022974,2]
[311773984,1705384272547,-154.27,0.00022991,2]
[311773985,1705384272556,-4282.9348936,0.00022994,2]
[311773986,1705384272565,-106873.7824445,0.00022994,2]
[311773987,1705384272574,-9927.6573298,0.00022994,2]
[311773988,1705384272583,-32478.3330516,0.00022994,2]
[311773989,1705384272594,-150.01,0.00022999,2]